Workbook

Sheet Cover
B2: 3GPP TSG-RAN WG4 Meeting #97-e | J2: R4-20015861
B3: Electronic meeting, 2nd-13th November, 2020
B5: Source: Moderator (Ericsson)
B6: Title: Summary of ideal and impairment results for ultra-low BLER BS
B7: Agenda: 7.8.1.1.3
B8: Document for: Information

Sheet Parameters
C2: Parameters for deriving performance requirements
C3: Ideal Span Threshold | D3: 2 | E3: dB
C4: Impairment Span Threshold | D4: 4 | E4: dB
B7: Notes | C7: 1. Call function DerivingPerfReq()
C8: 2. If the ruls does not apply, or fails, -100dB or less will be returned
D9: -100 | E9: Not enough input
D10: -101 | E10: Input should be pairs
D11: -102 | E11: Too large span for impairment
D12: -103 | E12: After removal iteration, not enough input

Sheet Results
A1: waveform | B1: Tx/Rx | C1: PUSCH mapping type | D1: SCS and BW | E1: MCS level | F1: Propagation condition | G1: DMRS | H1: 38.104 req | I1: 38.141 req | J1: Nokia | L1: Huawei | N1: Intel | P1: Ericsson | R1: Samsung | Z1: SPAN | AB1: AVERAGE
J2: Ideal | K2: Impairment | L2: Ideal | M2: Impairment | N2: Ideal | O2: Impairment | P2: Ideal | Q2: Impairment | R2: Ideal | S2: Impairment | T2: Ideal | U2: Impairment | V2: Ideal | W2: Impairment | X2: Ideal | Y2: Impairment | Z2: Ideal | AA2: Impairment | AB2: Ideal | AC2: Impairment
A3: CP-OFDM | B3: 1T2R | C3: type A | D3: 15kHz, 5MHz | E3: MCS5 | F3: AWGN | G3: DMRS 1+1 | H3: =DerivingPerfReq(J3:Y3) -> -5.1 | I3: =IF(H3>-100,H3+1.3,H3) -> -3.8 | J3: -6.5 | K3: -4 | L3: -7.8 | M3: -5.3 | N3: -6.9 | O3: -5.4 | P3: -7.9 | Q3: -5.4 | R3: -7.2 | S3: -5.2 | Z3: =MAX(J3,L3,N3,P3,R3,T3,V3,X3)-MIN(J3,L3,N3,P3,R3,T3,V3,X3) -> 1.4 | AA3: =MAX(K3,M3,O3,Q3,S3,U3,W3,Y3)-MIN(K3,M3,O3,Q3,S3,U3,W3,Y3) -> 1.4 | AB3: =AVERAGE(J3,L3,N3,P3,R3,T3,V3,X3) -> -7.26 | AC3: -5.06
A4: CP-OFDM | B4: 1T2R | C4: type A | D4: 15kHz, 10MHz | E4: MCS5 | F4: AWGN | G4: DMRS 1+1 | H4: -5.9 | I4: -4.6 | J4: -7.3 | K4: -4.8 | L4: -8.5 | M4: -6 | N4: -8.4 | O4: -6.9 | P4: -8.1 | Q4: -5.6 | R4: -7.7 | S4: -6.2 | Z4: =MAX(J4,L4,N4,P4,R4,T4,V4,X4)-MIN(J4,L4,N4,P4,R4,T4,V4,X4) -> 1.2 | AA4: =MAX(K4,M4,O4,Q4,S4,U4,W4,Y4)-MIN(K4,M4,O4,Q4,S4,U4,W4,Y4) -> 2.1 | AB4: =AVERAGE(J4,L4,N4,P4,R4,T4,V4,X4) -> -8 | AC4: =AVERAGE(K4,M4,O4,Q4,S4,U4,W4,Y4) -> -5.9
A5: CP-OFDM | B5: 1T2R | C5: type A | D5: 30kHz, 10MHz | E5: MCS5 | F5: AWGN | G5: DMRS 1+1 | H5: -5.4 | I5: -4.1 | J5: -6.5 | K5: -4 | L5: -7.8 | M5: -5.3 | N5: -7.8 | O5: -6.3 | P5: -7.9 | Q5: -5.4 | R5: -7.7 | S5: -6.2 | Z5: =MAX(J5,L5,N5,P5,R5,T5,V5,X5)-MIN(J5,L5,N5,P5,R5,T5,V5,X5) -> 1.4 | AA5: 2.3 | AB5: -7.54 | AC5: -5.44
A6: CP-OFDM | B6: 1T2R | C6: type A | D6: 30kHz, 40MHz | E6: MCS5 | F6: AWGN | G6: DMRS 1+1 | H6: -6.2 | I6: -4.9 | J6: -7.6 | K6: -5.1 | L6: -8.4 | M6: -5.9 | N6: -8.8 | O6: -7.3 | P6: -8.7 | Q6: -6.2 | R6: -8 | S6: -6.5 | Z6: =MAX(J6,L6,N6,P6,R6,T6,V6,X6)-MIN(J6,L6,N6,P6,R6,T6,V6,X6) -> 1.2 | AA6: =MAX(K6,M6,O6,Q6,S6,U6,W6,Y6)-MIN(K6,M6,O6,Q6,S6,U6,W6,Y6) -> 2.2 | AB6: =AVERAGE(J6,L6,N6,P6,R6,T6,V6,X6) -> -8.3 | AC6: =AVERAGE(K6,M6,O6,Q6,S6,U6,W6,Y6) -> -6.2
A7: CP-OFDM | B7: 1T2R | C7: type B | D7: 15kHz, 5MHz | E7: MCS5 | F7: AWGN | G7: DMRS 1+1 | H7: -5.2 | I7: -3.9 | J7: -6.6 | K7: -4.1 | L7: -7.9 | M7: -5.4 | N7: -6.9 | O7: -5.4 | P7: -7.9 | Q7: -5.4 | R7: -7.3 | S7: -5.8 | Z7: 1.3 | AA7: 1.7 | AB7: -7.32 | AC7: -5.22
A8: CP-OFDM | B8: 1T2R | C8: type B | D8: 15kHz, 10MHz | E8: MCS5 | F8: AWGN | G8: DMRS 1+1 | H8: -5.9 | I8: -4.6 | J8: -7.3 | K8: -4.8 | L8: -8.5 | M8: -6 | N8: -8.4 | O8: -6.9 | P8: -8.1 | Q8: -5.6 | R8: -7.7 | S8: -6.2 | Z8: =MAX(J8,L8,N8,P8,R8,T8,V8,X8)-MIN(J8,L8,N8,P8,R8,T8,V8,X8) -> 1.2 | AA8: =MAX(K8,M8,O8,Q8,S8,U8,W8,Y8)-MIN(K8,M8,O8,Q8,S8,U8,W8,Y8) -> 2.1 | AB8: =AVERAGE(J8,L8,N8,P8,R8,T8,V8,X8) -> -8 | AC8: =AVERAGE(K8,M8,O8,Q8,S8,U8,W8,Y8) -> -5.9
A9: CP-OFDM | B9: 1T2R | C9: type B | D9: 30kHz, 10MHz | E9: MCS5 | F9: AWGN | G9: DMRS 1+1 | H9: -5.5 | I9: -4.2 | J9: -6.6 | K9: -4.1 | L9: -7.9 | M9: -5.4 | N9: -7.8 | O9: -6.3 | P9: -7.9 | Q9: -5.4 | R9: -7.7 | S9: -6.2 | Z9: 1.3 | AA9: 2.2 | AB9: -7.58 | AC9: -5.48
A10: CP-OFDM | B10: 1T2R | C10: type B | D10: 30kHz, 40MHz | E10: MCS5 | F10: AWGN | G10: DMRS 1+1 | H10: -6.2 | I10: -4.9 | J10: -7.6 | K10: -5.1 | L10: -8.4 | M10: -5.9 | N10: -8.8 | O10: -7.3 | P10: -8.7 | Q10: -6.2 | R10: -7.9 | S10: -6.4 | Z10: =MAX(J10,L10,N10,P10,R10,T10,V10,X10)-MIN(J10,L10,N10,P10,R10,T10,V10,X10) -> 1.2 | AA10: =MAX(K10,M10,O10,Q10,S10,U10,W10,Y10)-MIN(K10,M10,O10,Q10,S10,U10,W10,Y10) -> 2.2 | AB10: =AVERAGE(J10,L10,N10,P10,R10,T10,V10,X10) -> -8.28 | AC10: =AVERAGE(K10,M10,O10,Q10,S10,U10,W10,Y10) -> -6.18
